[Event "Titled Tuesday Blitz May 23 Early 2023"]
[White "Hayrapetyan, Hovik"]
[Black "Al-Tarboush, Ward"]
[WhiteFideId "13302639"]
[BlackFideId "7601450"]
[WhiteElo "2348"]
[BlackElo "2265"]
[Result "1-0"]
[Round "09"]
[TimeControl "180+2"]
[Date "2023.05.23"]
[WhiteClock "0:00:29"]
[BlackClock "0:00:39"]

1. d4 {[%clk 0:03:00]}  Nf6 {[%clk 0:02:57]} 2. c4 {[%clk 0:03:01]}  b6 {[%clk 0:02:58]} 3. Nc3 {[%clk 0:02:56]}  Bb7 {[%clk 0:02:57]} 4. Nf3 {[%clk 0:02:56]}  e6 {[%clk 0:02:58]} 5. g3 {[%clk 0:02:54]}  Be7 {[%clk 0:02:55]} 6. Bg2 {[%clk 0:02:54]}  O-O {[%clk 0:02:56]} 7. O-O {[%clk 0:02:54]}  Ne4 {[%clk 0:02:56]} 8. Qd3 {[%clk 0:02:50]}  Nxc3 {[%clk 0:02:55]} 9. bxc3 {[%clk 0:02:51]}  f5 {[%clk 0:02:51]} 10. Ne5 {[%clk 0:02:51]}  Bxg2 {[%clk 0:02:50]} 11. Kxg2 {[%clk 0:02:52]}  Bf6 {[%clk 0:02:43]} 12. Ba3 {[%clk 0:02:12]}  d6 {[%clk 0:02:37]} 13. Qf3 {[%clk 0:02:10]}  Nd7 {[%clk 0:02:37]} 14. Nc6 {[%clk 0:02:10]}  Qe8 {[%clk 0:02:37]} 15. e4 {[%clk 0:02:06]}  Qg6 {[%clk 0:02:21]} 16. e5 {[%clk 0:01:54]}  Bg5 {[%clk 0:02:14]} 17. exd6 {[%clk 0:01:48]}  cxd6 {[%clk 0:02:15]} 18. Bxd6 {[%clk 0:01:47]}  Rfc8 {[%clk 0:02:10]} 19. Rfe1 {[%clk 0:01:43]}  h6 {[%clk 0:01:26]} 20. Re2 {[%clk 0:01:41]}  Qe8 {[%clk 0:01:20]} 21. d5 {[%clk 0:01:26]}  e5 {[%clk 0:01:05]} 22. Bxe5 {[%clk 0:01:22]}  Qf7 {[%clk 0:00:55]} 23. h4 {[%clk 0:01:16]}  Bf6 {[%clk 0:00:54]} 24. Bxf6 {[%clk 0:01:14]}  Nxf6 {[%clk 0:00:53]} 25. Ne7+ {[%clk 0:00:52]}  Kh8 {[%clk 0:00:52]} 26. Nxc8 {[%clk 0:00:45]}  Rxc8 {[%clk 0:00:53]} 27. Qxf5 {[%clk 0:00:44]}  Rxc4 {[%clk 0:00:52]} 28. d6 {[%clk 0:00:42]}  Rxc3 {[%clk 0:00:45]} 29. Rd1 {[%clk 0:00:38]}  Qc4 {[%clk 0:00:44]} 30. d7 {[%clk 0:00:33]}  Qc6+ {[%clk 0:00:39]} 31. Kh2 {[%clk 0:00:29]} 1-0


[Site "https://www.chess.com"]

[Event "Titled Tuesday Blitz May 23 Early 2023"]
[White "Tasev, Dejan"]
[Black "Dubov, Daniil"]
[WhiteFideId "936618"]
[BlackFideId "24126055"]
[WhiteElo "2244"]
[BlackElo "2793"]
[Result "0-1"]
[Round "09"]
[TimeControl "180+2"]
[Date "2023.05.23"]
[WhiteClock "0:00:00"]
[BlackClock "0:01:33"]

1. e4 {[%clk 0:03:00]}  g6 {[%clk 0:03:00]} 2. d4 {[%clk 0:03:00]}  d6 {[%clk 0:03:01]} 3. Nc3 {[%clk 0:03:00]}  Bg7 {[%clk 0:03:02]} 4. Nge2 {[%clk 0:03:01]}  Nf6 {[%clk 0:03:03]} 5. f3 {[%clk 0:03:01]}  O-O {[%clk 0:03:03]} 6. Be3 {[%clk 0:03:01]}  Nc6 {[%clk 0:03:03]} 7. Qd2 {[%clk 0:03:01]}  Rb8 {[%clk 0:03:04]} 8. h4 {[%clk 0:03:00]}  b5 {[%clk 0:03:05]} 9. h5 {[%clk 0:02:57]}  Nxh5 {[%clk 0:03:00]} 10. Bh6 {[%clk 0:02:53]}  e5 {[%clk 0:02:56]} 11. Bxg7 {[%clk 0:02:50]}  Kxg7 {[%clk 0:02:57]} 12. g4 {[%clk 0:02:47]}  exd4 {[%clk 0:02:36]} 13. Nd5 {[%clk 0:02:31]}  Ne5 {[%clk 0:02:34]} 14. Kf2 {[%clk 0:02:02]}  Bxg4 {[%clk 0:02:29]} 15. fxg4 {[%clk 0:01:54]}  Nxg4+ {[%clk 0:02:29]} 16. Ke1 {[%clk 0:01:49]}  c6 {[%clk 0:02:30]} 17. Qxd4+ {[%clk 0:01:44]}  Ne5 {[%clk 0:02:28]} 18. Rxh5 {[%clk 0:01:32]}  gxh5 {[%clk 0:02:23]} 19. Ne3 {[%clk 0:00:58]}  Qf6 {[%clk 0:02:03]} 20. Nf5+ {[%clk 0:00:56]}  Kh8 {[%clk 0:01:59]} 21. Kd1 {[%clk 0:00:35]}  d5 {[%clk 0:01:56]} 22. Bg2 {[%clk 0:00:25]}  dxe4 {[%clk 0:01:49]} 23. Qxe4 {[%clk 0:00:22]}  Rbd8+ {[%clk 0:01:49]} 24. Ke1 {[%clk 0:00:21]}  Rfe8 {[%clk 0:01:49]} 25. Rd1 {[%clk 0:00:20]}  Nd3+ {[%clk 0:01:33]} 26. cxd3 {[%clk 0:00:17]}  Rxe4 {[%clk 0:01:32]} 27. dxe4 {[%clk 0:00:17]}  Rxd1+ {[%clk 0:01:32]} 28. Kxd1 {[%clk 0:00:00]}  Qxb2 {[%clk 0:01:33]} 0-1


[Site "https://www.chess.com"]

[Event "Titled Tuesday Blitz May 23 Early 2023"]
[White "MKlose11"]
[Black "Galchenko, Matvey"]
[BlackFideId "24175480"]
[WhiteElo "2685"]
[BlackElo "2423"]
[Result "0-1"]
[Round "09"]
[TimeControl "180+2"]
[Date "2023.05.23"]
[WhiteClock "0:00:03"]
[BlackClock "0:00:10"]

1. e4 {[%clk 0:03:00]}  e6 {[%clk 0:02:59]} 2. Nf3 {[%clk 0:02:57]}  d5 {[%clk 0:03:00]} 3. e5 {[%clk 0:02:57]}  c5 {[%clk 0:03:00]} 4. b4 {[%clk 0:02:58]}  cxb4 {[%clk 0:03:01]} 5. a3 {[%clk 0:02:58]}  Nc6 {[%clk 0:03:02]} 6. d4 {[%clk 0:02:57]}  Bd7 {[%clk 0:03:01]} 7. Bd3 {[%clk 0:02:58]}  b5 {[%clk 0:02:51]} 8. O-O {[%clk 0:02:50]}  Qb6 {[%clk 0:02:43]} 9. Be3 {[%clk 0:02:42]}  bxa3 {[%clk 0:02:37]} 10. Nxa3 {[%clk 0:02:42]}  Na5 {[%clk 0:02:37]} 11. Qe2 {[%clk 0:02:14]}  Nc4 {[%clk 0:02:31]} 12. Nb1 {[%clk 0:02:01]}  Ne7 {[%clk 0:02:20]} 13. Nbd2 {[%clk 0:01:59]}  Nc6 {[%clk 0:02:14]} 14. Rfb1 {[%clk 0:01:56]}  Qc7 {[%clk 0:01:39]} 15. Nb3 {[%clk 0:01:37]}  Be7 {[%clk 0:01:24]} 16. Bg5 {[%clk 0:01:37]}  Bxg5 {[%clk 0:01:12]} 17. Nxg5 {[%clk 0:01:37]}  a5 {[%clk 0:01:06]} 18. c3 {[%clk 0:01:25]}  h6 {[%clk 0:01:02]} 19. Qh5 {[%clk 0:01:20]}  Nd8 {[%clk 0:00:59]} 20. Nc5 {[%clk 0:01:18]}  Nxe5 {[%clk 0:00:26]} 21. Bxb5 {[%clk 0:00:51]}  Nec6 {[%clk 0:00:13]} 22. Re1 {[%clk 0:00:24]}  O-O {[%clk 0:00:10]} 23. Bd3 {[%clk 0:00:24]}  Ne7 {[%clk 0:00:06]} 24. Nh7 {[%clk 0:00:23]}  Re8 {[%clk 0:00:06]} 25. Nf6+ {[%clk 0:00:20]}  gxf6 {[%clk 0:00:06]} 26. Qxh6 {[%clk 0:00:20]}  f5 {[%clk 0:00:04]} 27. Re3 {[%clk 0:00:20]}  Ng6 {[%clk 0:00:04]} 28. Rg3 {[%clk 0:00:17]}  Bc8 {[%clk 0:00:03]} 29. Rh3 {[%clk 0:00:16]}  Qd6 {[%clk 0:00:02]} 30. Re1 {[%clk 0:00:14]}  e5 {[%clk 0:00:02]} 31. Rf1 {[%clk 0:00:10]}  e4 {[%clk 0:00:02]} 32. Bb5 {[%clk 0:00:09]}  Re7 {[%clk 0:00:01]} 33. Rh5 {[%clk 0:00:08]}  Qf6 {[%clk 0:00:02]} 34. Qh7+ {[%clk 0:00:05]}  Kf8 {[%clk 0:00:02]} 35. Qh6+ {[%clk 0:00:06]}  Qg7 {[%clk 0:00:03]} 36. Qg5 {[%clk 0:00:06]}  Raa7 {[%clk 0:00:03]} 37. Re1 {[%clk 0:00:04]}  Ne6 {[%clk 0:00:03]} 38. Nxe6+ {[%clk 0:00:04]}  Bxe6 {[%clk 0:00:04]} 39. Qg3 {[%clk 0:00:04]}  Rab7 {[%clk 0:00:04]} 40. Bc6 {[%clk 0:00:03]}  Rb2 {[%clk 0:00:03]} 41. Qd6 {[%clk 0:00:03]}  Kg8 {[%clk 0:00:04]} 42. Qd8+ {[%clk 0:00:04]}  Qf8 {[%clk 0:00:05]} 43. Qd6 {[%clk 0:00:04]}  a4 {[%clk 0:00:05]} 44. Qg3 {[%clk 0:00:04]}  a3 {[%clk 0:00:05]} 45. Qh3 {[%clk 0:00:05]}  Qg7 {[%clk 0:00:05]} 46. Qg3 {[%clk 0:00:05]}  a2 {[%clk 0:00:05]} 47. h4 {[%clk 0:00:05]}  Rb1 {[%clk 0:00:05]} 48. Kh2 {[%clk 0:00:04]}  Rxe1 {[%clk 0:00:05]} 49. Qb8+ {[%clk 0:00:04]}  Nf8 {[%clk 0:00:06]} 50. Qa8 {[%clk 0:00:05]}  a1=Q {[%clk 0:00:06]} 51. Qxf8+ {[%clk 0:00:03]}  Kxf8 {[%clk 0:00:06]} 52. Rg5 {[%clk 0:00:04]}  Rh1+ {[%clk 0:00:06]} 53. Kg3 {[%clk 0:00:04]}  f4+ {[%clk 0:00:07]} 54. Kxf4 {[%clk 0:00:04]}  Qc1+ {[%clk 0:00:08]} 55. Kg3 {[%clk 0:00:03]}  Qgxg5+ {[%clk 0:00:09]} 56. hxg5 {[%clk 0:00:03]}  Qxg5# {[%clk 0:00:10]} 0-1


[Site "https://www.chess.com"]

[Event "Titled Tuesday Blitz May 23 Early 2023"]
[White "Maltsevskaya, Aleksandra"]
[Black "Molina, Roberto Junio Brito"]
[WhiteFideId "24174041"]
[BlackFideId "2109450"]
[WhiteElo "2302"]
[BlackElo "2376"]
[Result "0-1"]
[Round "09"]
[TimeControl "180+2"]
[Date "2023.05.23"]
[WhiteClock "0:00:00"]
[BlackClock "0:00:18"]

1. Nf3 {[%clk 0:02:47]}  d5 {[%clk 0:02:59]} 2. g3 {[%clk 0:02:48]}  c6 {[%clk 0:02:58]} 3. d3 {[%clk 0:02:49]}  Bg4 {[%clk 0:02:58]} 4. Bg2 {[%clk 0:02:49]}  Nd7 {[%clk 0:02:58]} 5. Nbd2 {[%clk 0:02:50]}  e6 {[%clk 0:02:58]} 6. h3 {[%clk 0:02:50]}  Bh5 {[%clk 0:02:58]} 7. O-O {[%clk 0:02:51]}  Bd6 {[%clk 0:02:58]} 8. e4 {[%clk 0:02:51]}  Ne7 {[%clk 0:02:58]} 9. g4 {[%clk 0:02:48]}  Bg6 {[%clk 0:02:57]} 10. Nh4 {[%clk 0:02:48]}  Qc7 {[%clk 0:02:52]} 11. exd5 {[%clk 0:02:41]}  cxd5 {[%clk 0:02:48]} 12. Nb3 {[%clk 0:02:41]}  Bh2+ {[%clk 0:02:44]} 13. Kh1 {[%clk 0:02:41]}  Bf4 {[%clk 0:02:44]} 14. c4 {[%clk 0:02:39]}  O-O {[%clk 0:02:38]} 15. Nxg6 {[%clk 0:02:34]}  Nxg6 {[%clk 0:02:27]} 16. cxd5 {[%clk 0:02:30]}  exd5 {[%clk 0:02:28]} 17. Bxd5 {[%clk 0:02:29]}  Nf6 {[%clk 0:02:29]} 18. Bg2 {[%clk 0:02:22]}  Nh4 {[%clk 0:02:19]} 19. Be3 {[%clk 0:02:12]}  Nxg2 {[%clk 0:02:04]} 20. Kxg2 {[%clk 0:02:13]}  Nd5 {[%clk 0:01:52]} 21. Bd4 {[%clk 0:01:48]}  b6 {[%clk 0:01:47]} 22. Qf3 {[%clk 0:01:48]}  Rad8 {[%clk 0:01:46]} 23. Rfe1 {[%clk 0:01:47]}  Qd7 {[%clk 0:01:42]} 24. Re4 {[%clk 0:01:45]}  Bb8 {[%clk 0:01:36]} 25. g5 {[%clk 0:01:34]}  a5 {[%clk 0:01:23]} 26. a4 {[%clk 0:01:10]}  Bc7 {[%clk 0:01:14]} 27. Rc1 {[%clk 0:01:09]}  Rfe8 {[%clk 0:00:57]} 28. Kg1 {[%clk 0:01:01]}  Qd6 {[%clk 0:00:34]} 29. Rce1 {[%clk 0:00:51]}  Rf8 {[%clk 0:00:26]} 30. Be5 {[%clk 0:00:48]}  Qd7 {[%clk 0:00:26]} 31. Nd4 {[%clk 0:00:45]}  Bxe5 {[%clk 0:00:24]} 32. Rxe5 {[%clk 0:00:46]}  Nb4 {[%clk 0:00:24]} 33. Nf5 {[%clk 0:00:45]}  Nxd3 {[%clk 0:00:21]} 34. Nh6+ {[%clk 0:00:00]}  Kh8 {[%clk 0:00:18]} 0-1


[Site "https://www.chess.com"]

[Event "Titled Tuesday Blitz May 23 Early 2023"]
[White "Bryakin, Mikhail"]
[Black "Jeet, Jain"]
[WhiteFideId "4165314"]
[BlackFideId "5073022"]
[WhiteElo "2467"]
[BlackElo "2067"]
[Result "1-0"]
[Round "09"]
[TimeControl "180+2"]
[Date "2023.05.23"]
[WhiteClock "0:00:21"]
[BlackClock "0:00:03"]

1. e4 {[%clk 0:03:00]}  Nc6 {[%clk 0:02:58]} 2. Nf3 {[%clk 0:02:56]}  d6 {[%clk 0:02:58]} 3. d4 {[%clk 0:02:56]}  Bg4 {[%clk 0:02:58]} 4. Be2 {[%clk 0:02:52]}  Bxf3 {[%clk 0:02:57]} 5. Bxf3 {[%clk 0:02:52]}  e5 {[%clk 0:02:58]} 6. c3 {[%clk 0:02:51]}  Nf6 {[%clk 0:02:57]} 7. O-O {[%clk 0:02:51]}  g6 {[%clk 0:02:57]} 8. Be3 {[%clk 0:02:48]}  Bg7 {[%clk 0:02:57]} 9. Nd2 {[%clk 0:02:48]}  O-O {[%clk 0:02:56]} 10. g3 {[%clk 0:02:46]}  Nd7 {[%clk 0:02:46]} 11. d5 {[%clk 0:02:33]}  Ne7 {[%clk 0:02:45]} 12. Bg2 {[%clk 0:02:34]}  f5 {[%clk 0:02:45]} 13. exf5 {[%clk 0:02:35]}  Nxf5 {[%clk 0:02:44]} 14. Ne4 {[%clk 0:02:30]}  Nxe3 {[%clk 0:02:44]} 15. fxe3 {[%clk 0:02:31]}  Qe7 {[%clk 0:02:31]} 16. Qe2 {[%clk 0:02:20]}  Bh6 {[%clk 0:02:27]} 17. Bh3 {[%clk 0:02:16]}  Nf6 {[%clk 0:02:20]} 18. Be6+ {[%clk 0:02:15]}  Kg7 {[%clk 0:02:20]} 19. Nf2 {[%clk 0:02:13]}  c6 {[%clk 0:02:12]} 20. c4 {[%clk 0:02:12]}  Nd7 {[%clk 0:02:05]} 21. Ne4 {[%clk 0:01:58]}  Nc5 {[%clk 0:02:01]} 22. Nxc5 {[%clk 0:01:57]}  dxc5 {[%clk 0:02:01]} 23. h4 {[%clk 0:01:48]}  Rxf1+ {[%clk 0:01:58]} 24. Rxf1 {[%clk 0:01:49]}  Rf8 {[%clk 0:01:58]} 25. Rxf8 {[%clk 0:01:46]}  Qxf8 {[%clk 0:01:59]} 26. Kg2 {[%clk 0:01:44]}  cxd5 {[%clk 0:01:51]} 27. cxd5 {[%clk 0:01:41]}  a6 {[%clk 0:01:39]} 28. e4 {[%clk 0:01:39]}  b5 {[%clk 0:01:29]} 29. b3 {[%clk 0:01:39]}  Bc1 {[%clk 0:01:26]} 30. Bd7 {[%clk 0:01:32]}  Qd6 {[%clk 0:01:20]} 31. Bc6 {[%clk 0:01:29]}  Ba3 {[%clk 0:01:16]} 32. h5 {[%clk 0:01:26]}  Bb4 {[%clk 0:01:12]} 33. Qe3 {[%clk 0:01:25]}  c4 {[%clk 0:01:10]} 34. bxc4 {[%clk 0:01:24]}  bxc4 {[%clk 0:01:11]} 35. h6+ {[%clk 0:01:24]}  Kg8 {[%clk 0:01:08]} 36. Qa7 {[%clk 0:01:15]}  Qf8 {[%clk 0:01:00]} 37. Qxa6 {[%clk 0:00:57]}  c3 {[%clk 0:01:00]} 38. Qc4 {[%clk 0:00:51]}  Bc5 {[%clk 0:00:56]} 39. Qxc3 {[%clk 0:00:42]}  Qf2+ {[%clk 0:00:50]} 40. Kh3 {[%clk 0:00:42]}  Qf1+ {[%clk 0:00:49]} 41. Kg4 {[%clk 0:00:37]}  Qh1 {[%clk 0:00:38]} 42. Qxe5 {[%clk 0:00:31]}  Qxh6 {[%clk 0:00:19]} 43. Bd7 {[%clk 0:00:17]}  Qh5+ {[%clk 0:00:02]} 44. Qxh5 {[%clk 0:00:17]}  gxh5+ {[%clk 0:00:03]} 45. Kxh5 {[%clk 0:00:18]}  Bd6 {[%clk 0:00:04]} 46. Kg4 {[%clk 0:00:16]}  Kg7 {[%clk 0:00:04]} 47. a4 {[%clk 0:00:17]}  Kf6 {[%clk 0:00:04]} 48. a5 {[%clk 0:00:15]}  Ke5 {[%clk 0:00:03]} 49. Bf5 {[%clk 0:00:16]}  Bc5 {[%clk 0:00:03]} 50. Bxh7 {[%clk 0:00:16]}  Bb4 {[%clk 0:00:03]} 51. a6 {[%clk 0:00:16]}  Bc5 {[%clk 0:00:04]} 52. Bf5 {[%clk 0:00:16]}  Bb6 {[%clk 0:00:03]} 53. Kh5 {[%clk 0:00:17]}  Ba7 {[%clk 0:00:04]} 54. g4 {[%clk 0:00:18]}  Bb6 {[%clk 0:00:03]} 55. g5 {[%clk 0:00:18]}  Ba7 {[%clk 0:00:04]} 56. g6 {[%clk 0:00:19]}  Kf6 {[%clk 0:00:05]} 57. Kh6 {[%clk 0:00:20]}  Be3+ {[%clk 0:00:04]} 58. Kh7 {[%clk 0:00:20]}  Bd4 {[%clk 0:00:03]} 59. g7 {[%clk 0:00:21]} 1-0


[Site "https://www.chess.com"]

[Event "Titled Tuesday Blitz May 23 Early 2023"]
[White "Vakhlamov, Igor L."]
[Black "Sielecki, Christof"]
[WhiteFideId "24126748"]
[BlackFideId "4620437"]
[WhiteElo "2407"]
[BlackElo "2443"]
[Result "1-0"]
[Round "09"]
[TimeControl "180+2"]
[Date "2023.05.23"]
[WhiteClock "0:00:06"]
[BlackClock "0:00:00"]

1. e4 {[%clk 0:02:59]}  c5 {[%clk 0:02:58]} 2. Nf3 {[%clk 0:02:58]}  a6 {[%clk 0:02:58]} 3. Nc3 {[%clk 0:02:55]}  b5 {[%clk 0:02:57]} 4. g3 {[%clk 0:02:54]}  Bb7 {[%clk 0:02:56]} 5. d3 {[%clk 0:02:54]}  e6 {[%clk 0:02:56]} 6. Bg2 {[%clk 0:02:55]}  Be7 {[%clk 0:02:51]} 7. O-O {[%clk 0:02:49]}  d6 {[%clk 0:02:50]} 8. Re1 {[%clk 0:02:49]}  Nd7 {[%clk 0:02:47]} 9. e5 {[%clk 0:02:37]}  Bxf3 {[%clk 0:02:15]} 10. Qxf3 {[%clk 0:02:38]}  Rb8 {[%clk 0:02:05]} 11. exd6 {[%clk 0:02:37]}  Bxd6 {[%clk 0:02:06]} 12. Ne4 {[%clk 0:02:08]}  Be7 {[%clk 0:02:02]} 13. Bf4 {[%clk 0:01:58]}  e5 {[%clk 0:02:02]} 14. Bd2 {[%clk 0:01:55]}  Ngf6 {[%clk 0:01:56]} 15. Nxf6+ {[%clk 0:01:46]}  Bxf6 {[%clk 0:01:57]} 16. a4 {[%clk 0:01:23]}  b4 {[%clk 0:01:47]} 17. a5 {[%clk 0:01:04]}  Qc7 {[%clk 0:01:37]} 18. h4 {[%clk 0:00:44]}  O-O {[%clk 0:01:33]} 19. Qe4 {[%clk 0:00:45]}  Rfe8 {[%clk 0:01:22]} 20. b3 {[%clk 0:00:44]}  Nf8 {[%clk 0:01:18]} 21. h5 {[%clk 0:00:42]}  Ne6 {[%clk 0:01:16]} 22. Be3 {[%clk 0:00:33]}  Nd4 {[%clk 0:01:14]} 23. Bxd4 {[%clk 0:00:32]}  cxd4 {[%clk 0:01:15]} 24. Re2 {[%clk 0:00:32]}  Rb5 {[%clk 0:01:11]} 25. h6 {[%clk 0:00:23]}  g6 {[%clk 0:01:10]} 26. Qc6 {[%clk 0:00:21]}  Qxc6 {[%clk 0:00:31]} 27. Bxc6 {[%clk 0:00:22]}  Reb8 {[%clk 0:00:32]} 28. Bxb5 {[%clk 0:00:22]}  Rxb5 {[%clk 0:00:33]} 29. f4 {[%clk 0:00:23]}  Kf8 {[%clk 0:00:31]} 30. Kg2 {[%clk 0:00:23]}  Ke7 {[%clk 0:00:28]} 31. Kf3 {[%clk 0:00:22]}  Ke6 {[%clk 0:00:28]} 32. g4 {[%clk 0:00:22]}  Bh8 {[%clk 0:00:27]} 33. Re4 {[%clk 0:00:19]}  f5 {[%clk 0:00:26]} 34. Re2 {[%clk 0:00:19]}  Bf6 {[%clk 0:00:25]} 35. gxf5+ {[%clk 0:00:16]}  Kxf5 {[%clk 0:00:25]} 36. fxe5 {[%clk 0:00:15]}  Bxe5 {[%clk 0:00:26]} 37. Re4 {[%clk 0:00:11]}  g5 {[%clk 0:00:25]} 38. Rae1 {[%clk 0:00:09]}  Rxa5 {[%clk 0:00:24]} 39. R4e2 {[%clk 0:00:08]}  Rc5 {[%clk 0:00:21]} 40. Kg2 {[%clk 0:00:07]}  Bf4 {[%clk 0:00:21]} 41. Rf1 {[%clk 0:00:04]}  Kg4 {[%clk 0:00:21]} 42. Rff2 {[%clk 0:00:04]}  Be3 {[%clk 0:00:21]} 43. Rf7 {[%clk 0:00:05]}  Kh5 {[%clk 0:00:19]} 44. Rxh7 {[%clk 0:00:05]}  Kg6 {[%clk 0:00:19]} 45. Ra7 {[%clk 0:00:05]}  Kxh6 {[%clk 0:00:19]} 46. Rxa6+ {[%clk 0:00:06]}  Kh5 {[%clk 0:00:19]} 47. Rb6 {[%clk 0:00:06]}  Kg4 {[%clk 0:00:08]} 48. Rxb4 {[%clk 0:00:06]}  Kf4 {[%clk 0:00:09]} 49. Rc4 {[%clk 0:00:05]}  Re5 {[%clk 0:00:07]} 50. c3 {[%clk 0:00:06]}  g4 {[%clk 0:00:00]} 51. cxd4 {[%clk 0:00:06]} 1-0


[Site "https://www.chess.com"]

[Event "Titled Tuesday Blitz May 23 Early 2023"]
[White "Manukyan, Sargis A."]
[Black "Fier, Alexandr"]
[WhiteFideId "13303970"]
[BlackFideId "2107139"]
[WhiteElo "2187"]
[BlackElo "2610"]
[Result "0-1"]
[Round "09"]
[TimeControl "180+2"]
[Date "2023.05.23"]
[WhiteClock "0:00:10"]
[BlackClock "0:00:52"]

1. d4 {[%clk 0:03:00]}  Nf6 {[%clk 0:02:59]} 2. c4 {[%clk 0:03:00]}  e5 {[%clk 0:02:59]} 3. dxe5 {[%clk 0:03:00]}  Ne4 {[%clk 0:02:59]} 4. Nf3 {[%clk 0:03:00]}  Nc6 {[%clk 0:02:58]} 5. e3 {[%clk 0:03:01]}  d6 {[%clk 0:02:55]} 6. Be2 {[%clk 0:03:01]}  Bf5 {[%clk 0:02:53]} 7. O-O {[%clk 0:03:00]}  dxe5 {[%clk 0:02:53]} 8. Nbd2 {[%clk 0:02:58]}  Bd6 {[%clk 0:02:50]} 9. Nxe4 {[%clk 0:02:54]}  Bxe4 {[%clk 0:02:51]} 10. Bd2 {[%clk 0:02:54]}  Qf6 {[%clk 0:02:50]} 11. Qb3 {[%clk 0:02:43]}  Qh6 {[%clk 0:02:49]} 12. c5 {[%clk 0:02:32]}  Bxc5 {[%clk 0:02:45]} 13. Qxb7 {[%clk 0:02:32]}  Rb8 {[%clk 0:02:35]} 14. Qxc7 {[%clk 0:02:30]}  O-O {[%clk 0:02:33]} 15. Qd7 {[%clk 0:02:03]}  Rfd8 {[%clk 0:02:26]} 16. Qh3 {[%clk 0:01:49]}  Qf6 {[%clk 0:02:06]} 17. Bc3 {[%clk 0:01:46]}  Bf5 {[%clk 0:01:53]} 18. Qh4 {[%clk 0:01:46]}  Qe6 {[%clk 0:01:45]} 19. Qc4 {[%clk 0:01:33]}  Qe7 {[%clk 0:01:42]} 20. Rfd1 {[%clk 0:01:32]}  Be6 {[%clk 0:01:40]} 21. Qh4 {[%clk 0:01:28]}  Qxh4 {[%clk 0:01:32]} 22. Nxh4 {[%clk 0:01:28]}  e4 {[%clk 0:01:32]} 23. g3 {[%clk 0:01:19]}  Nb4 {[%clk 0:01:30]} 24. Ng2 {[%clk 0:01:08]}  Nd3 {[%clk 0:01:29]} 25. Bxd3 {[%clk 0:01:02]}  exd3 {[%clk 0:01:29]} 26. Nf4 {[%clk 0:01:02]}  Bf5 {[%clk 0:01:29]} 27. Rd2 {[%clk 0:00:57]}  g5 {[%clk 0:01:25]} 28. Nh5 {[%clk 0:00:47]}  Kf8 {[%clk 0:01:26]} 29. Nf6 {[%clk 0:00:34]}  Be7 {[%clk 0:01:14]} 30. e4 {[%clk 0:00:33]}  Bg6 {[%clk 0:01:15]} 31. f3 {[%clk 0:00:33]}  Rd6 {[%clk 0:01:07]} 32. Nd5 {[%clk 0:00:33]}  f5 {[%clk 0:01:07]} 33. Nxe7 {[%clk 0:00:30]}  Kxe7 {[%clk 0:01:06]} 34. e5 {[%clk 0:00:31]}  Rd5 {[%clk 0:01:05]} 35. f4 {[%clk 0:00:31]}  gxf4 {[%clk 0:01:05]} 36. gxf4 {[%clk 0:00:31]}  Bh5 {[%clk 0:01:05]} 37. Kf2 {[%clk 0:00:29]}  Rg8 {[%clk 0:01:06]} 38. Rg1 {[%clk 0:00:27]}  Rxg1 {[%clk 0:01:01]} 39. Kxg1 {[%clk 0:00:28]}  Rd8 {[%clk 0:01:00]} 40. Kf2 {[%clk 0:00:28]}  Be2 {[%clk 0:00:58]} 41. b4 {[%clk 0:00:28]}  Ke6 {[%clk 0:00:58]} 42. a4 {[%clk 0:00:28]}  Kd5 {[%clk 0:00:58]} 43. Ke3 {[%clk 0:00:28]}  Kc4 {[%clk 0:00:58]} 44. Ba1 {[%clk 0:00:17]}  Rg8 {[%clk 0:00:59]} 45. Rb2 {[%clk 0:00:14]}  Rg1 {[%clk 0:00:57]} 46. e6 {[%clk 0:00:12]}  Rxa1 {[%clk 0:00:55]} 47. e7 {[%clk 0:00:06]}  Bh5 {[%clk 0:00:56]} 48. Kf2 {[%clk 0:00:02]}  Kc3 {[%clk 0:00:54]} 49. b5 {[%clk 0:00:03]}  Kxb2 {[%clk 0:00:53]} 50. b6 {[%clk 0:00:04]}  axb6 {[%clk 0:00:53]} 51. Ke3 {[%clk 0:00:05]}  Kc3 {[%clk 0:00:53]} 52. a5 {[%clk 0:00:05]}  bxa5 {[%clk 0:00:53]} 53. e8=Q {[%clk 0:00:04]}  Bxe8 {[%clk 0:00:53]} 54. Kf2 {[%clk 0:00:05]}  d2 {[%clk 0:00:53]} 55. h3 {[%clk 0:00:06]}  d1=Q {[%clk 0:00:54]} 56. Kg3 {[%clk 0:00:07]}  Qg1+ {[%clk 0:00:54]} 57. Kh4 {[%clk 0:00:08]}  Bb5 {[%clk 0:00:54]} 58. Kh5 {[%clk 0:00:08]}  Qg2 {[%clk 0:00:52]} 59. Kh4 {[%clk 0:00:09]}  Rg1 {[%clk 0:00:51]} 60. Kh5 {[%clk 0:00:09]}  Qg6+ {[%clk 0:00:51]} 61. Kh4 {[%clk 0:00:10]}  Qh6# {[%clk 0:00:52]} 0-1


[Site "https://www.chess.com"]

[Event "Titled Tuesday Blitz May 23 Early 2023"]
[White "Korchmar, Vasiliy"]
[Black "Rostovtsev, Dmitry"]
[WhiteFideId "24131750"]
[BlackFideId "34278320"]
[WhiteElo "2370"]
[BlackElo "2344"]
[Result "0-1"]
[Round "09"]
[TimeControl "180+2"]
[Date "2023.05.23"]
[WhiteClock "0:00:00"]
[BlackClock "0:00:34"]

1. e4 {[%clk 0:03:00]}  c5 {[%clk 0:02:58]} 2. Nf3 {[%clk 0:03:00]}  Nc6 {[%clk 0:02:58]} 3. d4 {[%clk 0:03:01]}  cxd4 {[%clk 0:02:59]} 4. Nxd4 {[%clk 0:03:01]}  Nf6 {[%clk 0:03:00]} 5. Nc3 {[%clk 0:03:02]}  d6 {[%clk 0:03:00]} 6. Be2 {[%clk 0:03:01]}  e5 {[%clk 0:02:59]} 7. Nb3 {[%clk 0:03:01]}  h6 {[%clk 0:02:59]} 8. O-O {[%clk 0:02:59]}  Be7 {[%clk 0:02:59]} 9. Be3 {[%clk 0:02:58]}  Be6 {[%clk 0:02:59]} 10. Qd3 {[%clk 0:02:50]}  O-O {[%clk 0:02:33]} 11. a3 {[%clk 0:02:50]}  d5 {[%clk 0:02:24]} 12. exd5 {[%clk 0:02:49]}  Nxd5 {[%clk 0:02:25]} 13. Nxd5 {[%clk 0:02:46]}  Qxd5 {[%clk 0:02:26]} 14. Qxd5 {[%clk 0:02:44]}  Bxd5 {[%clk 0:02:27]} 15. Rfd1 {[%clk 0:02:45]}  Rfd8 {[%clk 0:02:24]} 16. Rd2 {[%clk 0:02:32]}  b6 {[%clk 0:01:55]} 17. Rad1 {[%clk 0:02:27]}  Bxb3 {[%clk 0:01:55]} 18. cxb3 {[%clk 0:02:26]}  Rxd2 {[%clk 0:01:52]} 19. Rxd2 {[%clk 0:02:27]}  Rd8 {[%clk 0:01:52]} 20. Rxd8+ {[%clk 0:02:19]}  Nxd8 {[%clk 0:01:52]} 21. Bc4 {[%clk 0:02:06]}  Kf8 {[%clk 0:01:51]} 22. Bd5 {[%clk 0:02:04]}  Bd6 {[%clk 0:01:48]} 23. Kf1 {[%clk 0:02:01]}  Ke7 {[%clk 0:01:48]} 24. Ke2 {[%clk 0:02:00]}  Ne6 {[%clk 0:01:49]} 25. g3 {[%clk 0:01:51]}  Bc5 {[%clk 0:01:45]} 26. Kd3 {[%clk 0:01:18]}  Bxe3 {[%clk 0:01:44]} 27. fxe3 {[%clk 0:01:19]}  Kd6 {[%clk 0:01:40]} 28. e4 {[%clk 0:00:57]}  f5 {[%clk 0:01:29]} 29. b4 {[%clk 0:00:35]}  f4 {[%clk 0:00:59]} 30. Ke2 {[%clk 0:00:32]}  Nd4+ {[%clk 0:00:59]} 31. Kd3 {[%clk 0:00:32]}  Nf3 {[%clk 0:00:53]} 32. gxf4 {[%clk 0:00:27]}  exf4 {[%clk 0:00:54]} 33. h3 {[%clk 0:00:26]}  Ke5 {[%clk 0:00:45]} 34. a4 {[%clk 0:00:18]}  g5 {[%clk 0:00:42]} 35. Bb7 {[%clk 0:00:14]}  h5 {[%clk 0:00:42]} 36. Bc8 {[%clk 0:00:13]}  g4 {[%clk 0:00:38]} 37. hxg4 {[%clk 0:00:12]}  h4 {[%clk 0:00:38]} 38. Ke2 {[%clk 0:00:09]}  Ng5 {[%clk 0:00:38]} 39. Bf5 {[%clk 0:00:07]}  Nxe4 {[%clk 0:00:37]} 40. Kf3 {[%clk 0:00:02]}  Ng5+ {[%clk 0:00:36]} 41. Kf2 {[%clk 0:00:03]}  f3 {[%clk 0:00:34]} 42. a5 {[%clk 0:00:00]}  Kf4 {[%clk 0:00:34]} 0-1


[Site "https://www.chess.com"]